bitfinex/quotes_SOLUSD_20241223
["timestamp","ask_amount","ask_price","bid_price","bid_amount"]
[1734996243117,34.26159825,191.36,191.33,0.6830904]
[1734996243314,10.48471425,191.34,191.33,0.6830904]
[1734996243515,7.00639009,191.35,191.33,0.6830904]
[1734996243715,34.26159825,191.34,191.21,1.6124]
[1734996243905,10.48471425,191.27,191.21,1.6124]
[1734996244315,10.48471425,191.26,191.2,6.3511]
[1734996244494,10.48471425,191.25,191.17,148.59711425]
[1734996245016,10.48471425,191.24,191.17,136.5]
[1734996245222,10.48471425,191.23,191.17,136.5]
[1734996245523,10.48471425,191.22,191.17,136.5]
[1734996245729,10.48471425,191.21,191.14,147.66780465]
[1734996246121,10.48471425,191.21,191.14,149.73213015]
[1734996246448,10.48471425,191.2,191.14,0.6830904]
[1734996247141,10.48471425,191.21,191.14,11.16780465]
[1734996247333,10.48471425,191.22,191.15,10.48471425]
[1734996247520,10.48471425,191.21,191.14,0.6830904]
[1734996247839,10.48471425,191.21,191.14,11.16780465]
[1734996248617,10.48471425,191.21,191.14,0.6830904]
[1734996248816,10.48471425,191.24,191.17,34.26159825]
[1734996249038,10.48471425,191.26,191.19,10.48471425]
[1734996249237,10.48471425,191.27,191.2,10.48471425]
[1734996249430,10.48471425,191.26,191.19,10.48471425]
[1734996250134,10.48471425,191.25,191.18,146.98471425]
[1734996250336,10.48471425,191.24,191.19,23.776884]
[1734996250524,10.48471425,191.24,191.18,136.5]
[1734996251226,8.0017,191.32,191.21,34.26159825]
[1734996251520,10.48471425,191.28,191.22,23.776884]
[1734996251725,10.48471425,191.27,191.22,23.776884]
[1734996251919,10.48471425,191.27,191.21,136.5]
[1734996252645,10.48471425,191.24,191.18,23.776884]
[1734996252848,10.48471425,191.23,191.17,23.776884]
[1734996253051,10.48471425,191.22,191.17,23.776884]
[1734996254140,20.0,191.27,191.17,170.76159825]
[1734996254439,10.48471425,191.23,191.17,160.276884]
[1734996256250,16.44425904,191.23,191.17,160.276884]
[1734996258552,16.44425904,191.23,191.17,23.776884]
[1734996258850,16.44425904,191.24,191.17,40.22114304]
[1734996259048,16.44425904,191.24,191.17,177.08300617]
[1734996259248,16.44425904,191.25,191.19,23.776884]
[1734996259437,16.44425904,191.26,191.19,40.22114304]
[1734996260152,16.44425904,191.25,191.19,23.776884]
[1734996260455,16.44425904,191.24,191.18,160.276884]
[1734996261668,16.44425904,191.23,191.18,23.776884]
[1734996262174,16.44425904,191.23,191.17,23.776884]
[1734996262670,21.67175904,191.3,191.16,136.5]
[1734996262671,17.42479837,191.22,191.16,136.5]
[1734996262966,21.67175904,191.3,191.15,23.776884]
[1734996262967,16.44425904,191.2,191.15,23.776884]
[1734996263560,16.44425904,191.21,191.15,23.776884]
[1734996264031,16.44425904,191.24,191.17,40.22114304]
[1734996264238,16.44425904,191.25,191.18,152.94425904]
[1734996264538,16.44425904,191.25,191.19,23.776884]
[1734996265257,16.44425904,191.26,191.19,40.22114304]
[1734996265450,16.44425904,191.27,191.21,23.776884]
[1734996265631,16.44425904,191.27,191.2,136.5]
[1734996265832,16.44425904,191.25,191.18,166.02035904]
[1734996266050,16.44425904,191.25,191.19,23.776884]
[1734996266361,16.44425904,191.24,191.19,23.776884]
[1734996266739,16.44425904,191.22,191.15,166.02265904]
[1734996266953,16.44425904,191.23,191.15,29.52265904]
[1734996267154,16.44425904,191.23,191.16,16.44425904]
[1734996267833,16.44425904,191.23,191.15,29.88449456]
[1734996268049,16.44425904,191.22,191.16,23.776884]
[1734996268767,16.44425904,191.23,191.16,40.22114304]
[1734996268936,16.44425904,191.23,191.16,23.776884]
[1734996269639,16.44425904,191.22,191.16,160.276884]
[1734996271972,16.44425904,191.2,191.16,136.5]
[1734996272176,16.44425904,191.19,191.14,0.6830904]
[1734996272339,16.44425904,191.2,191.14,0.6830904]
[1734996274170,16.44425904,191.2,191.15,23.776884]
[1734996274669,16.44425904,191.2,191.14,0.6830904]
[1734996275051,16.44425904,191.21,191.15,23.776884]
[1734996275558,16.44425904,191.2,191.15,23.776884]
[1734996276166,10.52741402,191.2,191.15,23.776884]
[1734996277976,10.52741402,191.22,191.15,34.30429802]
[1734996278141,10.52741402,191.22,191.14,137.1830904]
[1734996278142,10.52741402,191.17,191.14,0.6830904]
[1734996278345,30.52741402,191.15,191.14,0.6830904]
[1734996280472,20.0,191.15,191.14,0.6830904]
[1734996280662,30.52741402,191.15,191.14,0.6830904]
[1734996282885,10.52741402,191.15,191.14,0.6830904]
[1734996284452,0.98110717,191.17,191.14,0.6830904]
[1734996284776,30.52741402,191.15,191.14,0.6830904]
[1734996289982,0.98091857,191.19,191.14,0.6830904]
[1734996290285,10.52741402,191.15,191.14,0.6830904]
[1734996294987,10.52741402,191.16,191.14,0.6830904]
[1734996296788,0.98080468,191.2,191.14,0.6830904]
[1734996296956,10.52741402,191.16,191.14,0.6830904]
[1734996297287,0.98080468,191.2,191.14,0.6830904]
[1734996297467,5.35781374,191.21,191.14,0.6830904]
[1734996297668,10.52741402,191.17,191.14,0.6830904]
[1734996297891,10.52741402,191.18,191.14,0.6830904]
[1734996302506,10.52741402,191.17,191.14,0.6830904]
[1734996303096,5.35781374,191.21,191.14,0.6830904]
[1734996303266,10.52741402,191.18,191.14,0.6830904]
[1734996303591,10.52741402,191.18,191.15,23.776884]
[1734996303757,10.52741402,191.17,191.14,0.6830904]
[1734996304489,20.0,191.22,191.15,23.776884]
[1734996304689,10.52741402,191.21,191.15,23.776884]
[1734996305892,5.35781374,191.26,191.17,23.776884]
[1734996306098,10.52741402,191.24,191.17,34.30429802]
[1734996306276,10.52741402,191.24,191.17,34.66603903]
[1734996306472,3.14567299,191.29,191.17,24.13862501]
[1734996306786,10.52741402,191.18,191.16,23.776884]
[1734996306992,10.52741402,191.18,191.15,1.5953]
[1734996307292,0.98065784,191.27,191.14,6.7990904]
[1734996307502,10.52741402,191.16,191.14,0.6830904]
[1734996307887,10.52741402,191.15,191.14,0.6830904]
[1734996312692,20.0,191.12,191.05,1.6642]
[1734996312899,7.00743574,191.14,191.05,1.6642]
[1734996313112,10.52741402,191.11,191.05,1.6642]
[1734996313317,10.52741402,191.12,191.05,12.19161402]
[1734996313714,10.52741402,191.11,191.05,1.6642]
[1734996315240,10.52741402,191.11,191.05,12.19161402]
[1734996315543,10.52741402,191.13,191.06,10.52741402]
[1734996315904,10.52741402,191.12,191.05,12.55461716]
[1734996317660,10.52741402,191.13,191.06,34.30429802]
[1734996317825,10.52741402,191.14,191.07,10.52741402]
[1734996318027,10.52741402,191.13,191.06,34.30429802]
[1734996318539,10.52741402,191.12,191.06,23.776884]
[1734996320443,2.59520938,191.19,191.07,10.89034432]
[1734996320648,10.52741402,191.17,191.1,10.52741402]
[1734996320863,10.52741402,191.17,191.11,23.776884]
[1734996321180,10.52741402,191.17,191.1,34.30429802]
[1734996321526,10.52741402,191.18,191.11,147.38983053]
[1734996321852,10.52741402,191.21,191.14,10.52741402]
[1734996322059,10.52741402,191.19,191.15,160.276884]
[1734996322738,10.52741402,191.17,191.14,20.0]
[1734996323258,10.52741402,191.16,191.14,23.776884]
[1734996323856,10.52741402,191.2,191.09,136.5]
[1734996324042,10.52741402,191.2,190.99,82.4]
[1734996324043,10.52741402,191.1,191.03,8.0428]
[1734996324249,10.52741402,191.06,191.03,1.6018]
[1734996324436,10.52741402,191.06,190.99,10.52741402]
[1734996324635,6.02615495,191.07,190.99,147.02741402]
[1734996324840,10.52741402,191.06,190.99,10.52741402]
[1734996325044,10.52741402,191.06,190.99,147.02741402]
[1734996325569,10.52741402,191.05,190.99,136.5]
[1734996326147,16.47615546,191.05,190.99,136.5]
[1734996327575,16.47615546,191.05,191.0,23.776884]
[1734996327763,16.47615546,191.04,191.0,23.776884]
[1734996330871,16.47615546,191.02,191.0,23.776884]
[1734996331187,16.47615546,191.03,191.0,23.776884]
[1734996333269,16.47615546,191.03,190.99,136.5]
[1734996333479,16.47615546,191.02,190.96,136.5]
[1734996334674,16.47615546,191.03,190.97,23.776884]
[1734996336351,16.47615546,191.02,190.96,23.776884]
[1734996336951,16.47615546,191.03,190.96,23.776884]
[1734996337149,16.47615546,191.03,190.96,40.25303946]
[1734996337373,16.47615546,191.07,191.0,23.776884]
[1734996337684,20.0,191.04,191.0,23.776884]
[1734996338657,16.47615546,191.07,191.0,40.25303946]
[1734996338972,16.47615546,191.08,191.02,23.776884]
[1734996339153,16.47615546,191.07,191.0,176.75303946]
[1734996339546,16.47615546,191.08,191.02,23.776884]
[1734996339747,12.23505495,191.12,191.02,23.776884]
[1734996339748,16.47615546,191.09,191.02,176.75303946]
[1734996339947,16.47615546,191.1,191.04,23.776884]
[1734996341380,16.47615546,191.09,191.04,23.776884]
[1734996341676,16.47615546,191.09,191.03,23.776884]
[1734996342788,16.47615546,191.07,191.02,8.0428]
[1734996342952,16.47615546,191.05,191.02,1.6018]
[1734996343372,16.47615546,191.06,191.02,1.6018]
[1734996343757,16.47615546,191.06,190.99,16.47615546]
[1734996344267,16.47615546,191.06,191.0,23.776884]
[1734996345582,16.47615546,191.05,190.99,23.776884]
[1734996346381,16.47615546,191.06,190.99,40.25303946]
[1734996346702,16.47615546,191.06,191.01,23.776884]
[1734996347087,16.47615546,191.06,190.99,40.25303946]
[1734996347785,16.47615546,191.05,190.99,23.776884]
[1734996347959,16.47615546,191.06,190.99,176.75303946]
[1734996348287,10.54271636,191.07,191.01,23.776884]
[1734996349761,10.54271636,191.08,191.01,34.31960036]
[1734996349975,20.0,191.05,191.01,34.31960036]
[1734996351003,20.0,191.05,191.01,23.776884]
[1734996351155,7.00742417,191.13,191.02,10.54271636]
[1734996351370,10.54271636,191.11,191.04,10.54271636]
[1734996351564,10.54271636,191.11,191.05,23.776884]
[1734996352168,10.54271636,191.13,191.07,23.776884]
[1734996353793,10.54271636,191.13,191.07,34.31960036]
[1734996354093,10.54271636,191.13,191.07,23.776884]
[1734996354404,16.4624186,191.13,191.07,23.776884]
[1734996356068,16.4624186,191.15,191.09,23.776884]
[1734996356269,16.4624186,191.15,191.09,24.13942254]
[1734996356483,16.4624186,191.16,191.09,40.60184114]
[1734996356680,16.4624186,191.16,191.09,177.10184114]
[1734996356883,16.4624186,191.15,191.09,160.276884]
[1734996358305,16.4624186,191.13,191.09,136.5]
[1734996358483,16.4624186,191.12,191.06,138.0967]
[1734996358997,16.4624186,191.11,191.06,138.0967]
[1734996359430,16.4624186,191.12,191.06,138.0967]
[1734996359724,16.4624186,191.12,191.07,23.776884]
[1734996359931,16.4624186,191.09,191.06,1.5967]
[1734996360094,16.4624186,191.08,191.01,163.09777158]
[1734996360632,16.4624186,191.07,191.01,146.63535298]
[1734996362030,16.4624186,191.08,191.01,163.09777158]
[1734996362230,16.4624186,191.07,191.02,23.776884]
[1734996362561,16.4624186,191.06,191.01,8.0377]
[1734996364128,16.4624186,191.06,191.02,23.776884]
[1734996364293,16.4624186,191.07,191.02,23.776884]
[1734996365325,16.4624186,191.07,191.0,16.4624186]
[1734996365621,16.4624186,191.03,190.96,16.4624186]
[1734996366520,16.4624186,191.0,190.95,0.6830904]
[1734996368836,16.4624186,190.99,190.95,0.6830904]
[1734996369535,16.4624186,190.97,190.95,0.6830904]
[1734996370409,16.4624186,190.96,190.95,0.6830904]
[1734996370812,16.4624186,190.97,190.95,0.6830904]
[1734996371216,16.4624186,190.96,190.95,0.6830904]
[1734996371411,17.4442877,190.96,190.95,0.6830904]
[1734996373010,25.2508877,190.96,190.95,0.6830904]
[1734996373335,19.0500877,190.96,190.95,0.6830904]
[1734996373539,18.0682186,190.96,190.95,0.6830904]
[1734996373837,16.4624186,190.96,190.95,0.6830904]
[1734996374846,16.4624186,190.96,190.84,23.776884]
[1734996374847,20.0,190.93,190.84,23.776884]
[1734996375023,16.4624186,190.87,190.83,2.69545801]
[1734996375353,16.4624186,190.87,190.8,16.4624186]
[1734996375653,16.4624186,190.87,190.79,160.9307186]
[1734996375822,16.4624186,190.86,190.79,24.4307186]
[1734996376024,16.4624186,190.85,190.79,7.9683]
[1734996376219,16.4624186,190.9,190.79,7.9683]
[1734996376220,16.4624186,190.84,190.79,7.9683]
[1734996376759,16.4624186,190.83,190.77,136.5]
[1734996377042,16.4624186,190.85,190.78,16.4624186]
[1734996377240,16.4624186,190.84,190.77,16.4624186]
[1734996377444,16.4624186,190.84,190.76,153.645509]
[1734996377925,16.4624186,190.82,190.77,23.776884]
[1734996378248,36.4624186,190.87,190.8,16.4624186]
[1734996378425,16.4624186,190.89,190.78,13.104]
[1734996378621,16.4624186,190.9,190.83,16.4624186]
[1734996379046,16.4624186,190.91,190.83,16.4624186]
[1734996379315,16.4624186,190.9,190.84,23.776884]
[1734996380712,16.4624186,190.92,190.86,23.776884]
[1734996380920,16.4624186,190.91,190.86,23.776884]
[1734996382048,16.4624186,190.9,190.83,144.4683]
[1734996382259,16.4624186,190.92,190.85,16.4624186]
[1734996382555,1.5892,190.93,190.79,136.5]
[1734996382751,5.35781374,190.91,190.78,7.7979]
[1734996382914,0.98251882,190.9,190.78,7.7979]
[1734996383117,16.4624186,190.83,190.78,7.7979]
[1734996383541,0.98258537,190.88,190.78,7.7979]
[1734996383849,16.4624186,190.85,190.78,7.7979]
[1734996384223,16.4624186,190.83,190.76,0.6830904]
[1734996384432,0.9827257,190.82,190.76,0.6830904]
[1734996384731,16.4624186,190.81,190.76,0.6830904]
[1734996386317,16.4624186,190.83,190.76,17.145509]
[1734996386821,16.4624186,190.83,190.76,0.6830904]
[1734996387041,16.4624186,190.81,190.76,0.6830904]
[1734996387217,16.4624186,190.82,190.76,0.6830904]
[1734996389361,16.4624186,190.84,190.77,40.2393026]
[1734996389523,16.4624186,190.83,190.77,23.776884]
[1734996389725,16.4624186,190.81,190.76,0.6830904]
[1734996390223,16.4624186,190.82,190.76,0.6830904]
[1734996390425,16.4624186,190.83,190.76,0.6830904]
[1734996390651,16.4624186,190.84,190.77,40.2393026]
[1734996392874,16.4624186,190.85,190.77,176.7393026]
[1734996393758,16.4624186,190.85,190.78,16.4624186]
[1734996394673,16.4624186,190.84,190.77,176.7393026]
[1734996395861,9.29677313,190.89,190.77,23.776884]
[1734996395862,16.4624186,190.83,190.77,23.776884]
[1734996397853,16.4624186,190.84,190.77,40.2393026]
[1734996398054,16.4624186,190.85,190.77,40.2393026]
[1734996398379,16.4624186,190.84,190.77,40.2393026]
[1734996398746,16.4624186,190.83,190.77,23.776884]
[1734996401382,16.4624186,190.82,190.77,23.776884]
[1734996402162,16.4624186,190.83,190.77,23.776884]
[1734996406894,2.56820818,190.89,190.77,176.7393026]
[1734996407198,16.4624186,190.86,190.8,23.776884]
[1734996407365,16.4624186,190.86,190.8,24.14242243]
[1734996407768,16.4624186,190.87,190.8,177.10484103]
[1734996407982,16.4624186,190.87,190.8,176.7393026]
[1734996408191,10.56491981,190.87,190.8,170.84180381]
[1734996408387,6.72856495,190.9,190.8,170.84180381]
[1734996408595,10.56491981,190.87,190.8,170.84180381]
[1734996410095,10.56491981,190.86,190.8,160.276884]
[1734996410297,16.50876891,190.86,190.8,160.276884]
[1734996410899,16.50876891,190.87,190.8,176.78565291]
[1734996411403,16.50876891,190.88,190.81,16.50876891]
[1734996411592,16.50876891,190.83,190.78,136.5]
[1734996411801,16.50876891,190.84,190.77,16.50876891]
[1734996412103,16.50876891,190.84,190.77,153.00876891]
[1734996412577,16.50876891,190.83,190.76,155.75291699]
[1734996413506,16.50876891,190.83,190.76,153.69185931]
[1734996413711,16.50876891,190.81,190.76,0.6830904]
[1734996413881,16.50876891,190.82,190.76,0.6830904]
[1734996414394,16.50876891,190.81,190.76,0.6830904]
[1734996415604,7.71106894,190.89,190.77,23.776884]
[1734996415812,16.50876891,190.85,190.77,40.28565291]
[1734996416599,16.50876891,190.85,190.78,16.50876891]
[1734996417195,16.50876891,190.85,190.79,23.776884]
[1734996417394,16.50876891,190.85,190.77,40.65147613]
[1734996418103,16.50876891,190.87,190.79,16.50876891]
[1734996419119,16.50876891,190.87,190.81,23.776884]
[1734996419597,16.50876891,190.86,190.79,16.50876891]
[1734996419926,16.50876891,190.85,190.79,23.776884]
[1734996420914,16.50876891,190.86,190.79,23.776884]
[1734996421600,16.50876891,190.87,190.79,40.28565291]
[1734996421910,16.50876891,190.89,190.81,16.50876891]
[1734996422113,16.50876891,190.89,190.82,16.50876891]
[1734996422325,16.50876891,190.9,190.83,40.28565291]
[1734996423779,16.50876891,190.89,190.83,40.28565291]
[1734996423985,16.50876891,190.89,190.83,23.776884]
[1734996424711,16.50876891,190.9,190.83,176.78565291]
[1734996425288,16.50876891,190.89,190.83,176.78565291]
[1734996425700,16.50876891,190.89,190.83,160.276884]
[1734996426990,16.50876891,190.89,190.83,176.78565291]
[1734996427313,16.50876891,190.9,190.83,40.28565291]
[1734996428622,16.50876891,190.92,190.85,16.50876891]
[1734996428918,16.50876891,190.95,190.88,16.50876891]
[1734996429421,16.50876891,190.9,190.84,156.1435]
[1734996429589,16.50876891,190.93,190.86,16.50876891]
[1734996429788,16.50876891,190.93,190.87,16.50876891]
[1734996430325,10.55722181,190.94,190.87,10.55722181]
[1734996431617,10.55722181,190.93,190.86,10.92210173]
[1734996431826,10.55722181,190.92,190.85,170.83410581]
[1734996432318,10.55722181,190.92,190.86,10.55722181]
[1734996432526,10.55722181,190.93,190.86,10.55722181]
[1734996432823,10.55722181,190.93,190.87,23.776884]
[1734996435304,10.55722181,190.92,190.87,23.776884]
[1734996435504,10.55722181,190.93,190.87,23.776884]
[1734996436433,10.55722181,190.94,190.87,23.776884]
[1734996436823,10.55722181,190.93,190.87,23.776884]
[1734996437136,20.98198147,190.96,190.87,23.776884]
[1734996437344,10.55722181,190.93,190.87,23.776884]
[1734996438026,10.55722181,190.94,190.87,23.776884]
[1734996438420,10.55722181,190.93,190.87,23.776884]
[1734996438634,10.55722181,190.94,190.87,23.776884]
[1734996438814,20.0,190.96,190.89,10.55722181]
[1734996439002,10.55722181,190.98,190.91,10.55722181]
[1734996440424,10.55722181,190.98,190.92,23.776884]
[1734996440802,10.55722181,190.99,190.92,34.33410581]
[1734996442124,0.98193198,191.01,190.91,23.776884]
[1734996442125,10.55722181,190.98,190.91,23.776884]
[1734996442432,10.55722181,190.95,190.88,10.55722181]
[1734996442734,10.55722181,190.97,190.91,23.776884]
[1734996442914,10.55722181,190.96,190.89,170.83410581]
[1734996443529,10.55722181,190.96,190.89,160.276884]
[1734996443730,10.55722181,190.96,190.89,23.776884]
[1734996445639,20.98195192,190.99,190.9,10.55722181]
[1734996445820,10.55722181,190.98,190.91,23.776884]
[1734996446333,20.0,190.99,190.94,10.55722181]
[1734996446836,20.0,190.99,190.93,10.55722181]
[1734996447837,10.55722181,191.0,190.93,10.55722181]
[1734996452242,11.53896494,191.01,190.93,10.55722181]
[1734996453647,7.68926143,191.02,190.95,10.55722181]
[1734996453648,6.04956143,191.02,190.95,10.55722181]
[1734996453819,10.55722181,191.06,190.99,10.55722181]
[1734996454147,6.07693842,191.11,191.05,10.55722181]
[1734996454318,8.15922457,191.12,191.08,10.55722181]
[1734996455141,8.15922457,191.12,191.09,0.36289171]
[1734996455343,0.9810648,191.13,191.04,160.276884]
[1734996455553,10.55722181,191.14,191.07,10.55722181]
[1734996456343,16.46258772,191.14,191.07,16.46258772]
[1734996457050,16.46258772,191.12,191.05,16.46258772]
[1734996457734,16.46258772,191.14,191.07,16.46258772]
[1734996457945,16.46258772,191.16,191.09,16.46258772]
[1734996458249,16.46258772,191.16,191.1,16.46258772]
[1734996458461,16.46258772,191.16,191.09,16.46258772]
[1734996458624,0.98093875,191.15,191.08,16.46258772]
[1734996458826,16.46258772,191.15,191.08,16.46258772]
[1734996460449,16.46258772,191.17,191.09,40.23947172]
[1734996460642,20.0,191.14,191.09,40.23947172]
[1734996462054,16.46258772,191.17,191.09,40.23947172]
[1734996462259,16.46258772,191.16,191.09,40.23947172]
[1734996462760,16.46258772,191.17,191.1,16.46258772]
[1734996463065,16.46258772,191.17,191.11,23.776884]
[1734996463235,16.46258772,191.16,191.09,40.23947172]
[1734996464451,17.44348545,191.15,191.08,16.46258772]
[1734996464647,16.46258772,191.15,191.09,23.776884]
[1734996465533,16.46258772,191.16,191.09,23.776884]
[1734996467264,16.46258772,191.16,191.09,40.23947172]
[1734996468866,16.46258772,191.18,191.1,16.46258772]
[1734996469181,20.0,191.15,191.12,40.23947172]
[1734996469331,20.0,191.16,191.12,40.23947172]
[1734996469840,20.0,191.16,191.12,23.776884]
[1734996470471,20.0,191.15,191.12,23.776884]
[1734996470766,20.0,191.16,191.12,23.776884]
[1734996470967,16.46258772,191.18,191.12,23.776884]
[1734996471167,16.46258772,191.19,191.13,23.776884]
[1734996471348,16.46258772,191.21,191.14,16.46258772]
[1734996471565,16.46258772,191.21,191.15,23.776884]
[1734996471781,16.46258772,191.19,191.11,40.23947172]
[1734996471959,16.46258772,191.17,191.11,23.776884]
[1734996472285,16.46258772,191.15,191.1,23.776884]
[1734996472463,16.46258772,191.15,191.08,161.37690716]
[1734996472661,16.46258772,191.15,191.08,159.25258772]
[1734996473290,16.46258772,191.14,191.08,136.5]
[1734996473779,16.46258772,191.15,191.08,152.96258772]
[1734996473951,16.46258772,191.15,191.09,23.776884]
[1734996474152,16.46258772,191.16,191.09,16.46258772]
[1734996475204,16.46258772,191.16,191.08,23.776884]
[1734996475358,16.46258772,191.16,191.09,16.46258772]
[1734996475981,0.98098983,191.18,191.1,40.23947172]
[1734996476190,20.0,191.15,191.12,23.776884]
[1734996476482,16.46258772,191.21,191.14,23.776884]
[1734996476797,16.46258772,191.24,191.17,40.23947172]
[1734996477083,0.98067041,191.25,191.19,23.776884]
[1734996477084,16.46258772,191.25,191.19,23.776884]
[1734996478093,17.44309739,191.25,191.18,23.776884]
[1734996478385,16.46258772,191.24,191.18,23.776884]
[1734996478689,20.0,191.21,191.18,23.776884]
[1734996479191,20.0,191.2,191.17,23.776884]
[1734996480878,20.0,191.21,191.18,23.776884]
[1734996481693,20.0,191.2,191.17,23.776884]
[1734996482291,16.46258772,191.25,191.17,40.23947172]
[1734996482590,17.44311336,191.25,191.18,23.776884]
[1734996482893,16.46258772,191.24,191.18,23.776884]
[1734996483191,20.0,191.21,191.18,23.776884]
[1734996484097,20.0,191.21,191.17,23.776884]
[1734996484260,20.0,191.21,191.17,16.46258772]
[1734996484686,20.0,191.21,191.18,23.776884]
[1734996485702,0.98052967,191.27,191.18,40.23947172]
[1734996486001,17.44294705,191.29,191.22,23.776884]
[1734996486163,11.50031435,191.29,191.22,23.776884]
[1734996486364,11.50031435,191.29,191.22,34.29683902]
[1734996486572,10.51995502,191.29,191.22,34.29683902]
[1734996486987,10.51995502,191.28,191.22,23.776884]
[1734996488202,16.43799853,191.28,191.22,23.776884]
[1734996488396,16.43799853,191.26,191.19,16.43799853]
[1734996488700,20.0,191.26,191.19,40.21488253]
[1734996489226,16.43799853,191.25,191.19,23.776884]
[1734996489716,17.41854023,191.25,191.19,23.776884]
[1734996489998,16.43799853,191.24,191.19,23.776884]
[1734996490245,16.43799853,191.24,191.18,23.776884]
[1734996490503,16.43799853,191.24,191.17,23.776884]
[1734996490798,16.43799853,191.24,191.17,40.21488253]
[1734996491002,17.41854023,191.25,191.18,16.43799853]
[1734996491211,20.0,191.22,191.19,23.776884]
[1734996493478,16.43799853,191.23,191.16,16.43799853]
[1734996493804,20.0,191.2,191.16,23.776884]
[1734996494399,16.43799853,191.22,191.16,23.776884]
[1734996494717,16.43799853,191.23,191.16,23.776884]
[1734996494920,20.0,191.2,191.16,40.21488253]
[1734996495209,16.43799853,191.24,191.17,16.43799853]
[1734996495426,36.43799853,191.25,191.18,23.776884]
[1734996495787,16.43799853,191.24,191.18,23.776884]
[1734996496413,5.72065819,191.28,191.2,40.21488253]
[1734996496604,16.43799853,191.3,191.23,16.43799853]
[1734996496804,16.43799853,191.3,191.24,23.776884]
[1734996498219,16.43799853,191.29,191.23,23.776884]
[1734996498422,16.43799853,191.28,191.23,23.776884]
[1734996498916,16.43799853,191.29,191.23,23.776884]
[1734996499212,16.43799853,191.28,191.23,23.776884]
[1734996499717,16.43799853,191.27,191.23,23.776884]
[1734996500022,16.43799853,191.24,191.16,142.6285]
[1734996500192,16.43799853,191.23,191.16,6.1285]
[1734996500392,16.43799853,191.24,191.17,16.43799853]
[1734996500610,16.43799853,191.23,191.16,22.56649853]
[1734996500793,16.43799853,191.24,191.17,16.43799853]
[1734996501505,16.43799853,191.24,191.18,23.776884]
[1734996508000,16.43799853,191.26,191.18,23.776884]
[1734996508326,20.0,191.23,191.18,23.776884]
[1734996509233,20.0,191.25,191.18,23.776884]
[1734996509407,36.43799853,191.25,191.18,23.776884]
[1734996511835,36.43799853,191.25,191.17,23.776884]
[1734996512131,10.52522188,191.23,191.17,23.776884]
[1734996512310,10.52522188,191.23,191.16,136.5]
[1734996512620,10.52522188,191.22,191.16,136.5]
[1734996513644,10.52522188,191.22,191.17,23.776884]
[1734996514118,10.52522188,191.22,191.16,23.776884]
[1734996514306,10.52522188,191.2,191.16,23.776884]
[1734996514733,10.52522188,191.21,191.16,23.776884]
[1734996515213,10.52522188,191.21,191.14,10.52522188]
[1734996515214,10.52522188,191.21,191.15,23.67771203]
[1734996515631,10.52522188,191.21,191.13,6.5427]
[1734996515811,10.52522188,191.2,191.13,6.5427]
[1734996516015,10.52522188,191.2,191.13,17.06792188]
[1734996517215,5.63727731,191.24,191.13,17.06792188]
[1734996517216,10.52522188,191.21,191.13,17.06792188]
[1734996517629,10.52522188,191.21,191.14,23.776884]
[1734996518649,10.52522188,191.21,191.14,34.30210588]
[1734996519618,10.52522188,191.19,191.1,138.0998]
[1734996519821,10.52522188,191.19,191.12,10.52522188]
[1734996521024,10.52522188,191.19,191.11,23.776884]
[1734996521243,10.52522188,191.17,191.11,23.776884]
[1734996521418,0.98092216,191.16,191.1,1.5998]
[1734996521740,10.52522188,191.16,191.1,1.5998]
[1734996521939,10.52522188,191.17,191.1,1.5998]
[1734996522236,10.52522188,191.16,191.1,1.5998]
[1734996522441,10.52522188,191.16,191.1,12.12502188]
[1734996522618,10.52522188,191.17,191.1,12.12502188]
[1734996523954,20.0,191.18,191.13,10.52522188]
[1734996524247,20.0,191.21,191.14,10.52522188]
[1734996524455,30.52522188,191.21,191.14,10.52522188]
[1734996524617,8.12664825,191.24,191.17,23.776884]
[1734996524820,8.12664825,191.24,191.21,23.776884]
[1734996525131,11.50557771,191.29,191.22,10.52522188]
[1734996525341,10.52522188,191.29,191.22,10.52522188]
[1734996525709,10.52522188,191.29,191.23,23.776884]
[1734996525909,1.5108,191.3,191.23,34.30210588]
[1734996526144,0.98024371,191.33,191.23,34.30210588]
[1734996526345,8.12664825,191.34,191.28,10.52522188]
[1734996526548,0.98017243,191.35,191.29,10.52522188]
[1734996526721,19.63185685,191.36,191.29,10.52522188]
[1734996527352,10.52522188,191.33,191.26,10.52522188]
[1734996527511,10.52522188,191.33,191.25,23.776884]
[1734996527717,0.98006934,191.32,191.26,10.52522188]
[1734996528326,36.42907395,191.33,191.26,16.42907395]
[1734996528746,17.40919949,191.32,191.26,23.776884]
[1734996528927,16.42907395,191.31,191.24,40.20595795]